Cogmind - Beta 16 @@@ ROGUE MODE // 2026.01.02 @ 14:17:27 Player: winnking222 Result: Self-destructed Performance ------------- Evolutions (8) 4000 Regions Visited (19) 3800 Robots Destroyed (241) 1205 Value Destroyed (11213) 11213 Prototype IDs (106) 2120 Alien Tech Used (2) 400 Bonus (5408) 5408 TOTAL SCORE: 28146 Bonus ------- High Alert Combat Kills 5059 Follower Combat Kills 530 Registered with UFD 300 Met Optimus in HQ 500 Met Optimus at Protoforge 1000 Friendly Fire -1981 Cogmind --------- Core Integrity 551/1450 Matter 1050/1050 Energy 350/350 System Corruption 4% Temperature Cool (13) Movement Flying (42) Location -2/Protoforge Parts ------- > --- POWER (2) -------- Improved Quantum Reactor > --- PROPULSION (6) --- Impulse Thruster Array Impulse Thruster Array > --- UTILITY (11) ----- 0bPrime Scrap Suit Concept NT7 Matterbank Experimental Optical Array Advanced Signal Interpreter Experimental Launcher Guidance Computer Experimental Core Analyzer Ghost Barrier > --- WEAPON (4) ------- (None) > --- INVENTORY (5) ---- Impulse Thruster Array Subatomic Replicator Z-bomb Delivery System Peak State ------------ > --- POWER ------------ Light Fission Core Light Antimatter Reactor > --- PROPULSION ------- Q-thruster Cooled Impulse Thruster Impulse Thruster Array Cooled Q-thruster Cooled Q-thruster > --- UTILITY ---------- Advanced Heat Sink Enhanced Optical Array Long-range Sensor Array Advanced Signal Interpreter Experimental Launcher Guidance Computer Experimental Armor Integrity Analyzer Advanced Reaction Control System Layered Light Armor Plating Hacking Suite Improved System Shield Ghost Barrier > --- WEAPON ----------- Concept XC Strikerail Concept XC Strikerail Sigix Broadsword > --- INVENTORY -------- Q-thruster Experimental Surge Thruster Subatomic Replicator Tachyon Dispersion Ray Z-bomb Delivery System [Rating: 194] Favorites ----------- Power Light Fission Core Engine Improved Ion Engine Power Core Light Fission Core Reactor Light Antimatter Reactor Propulsion Field Propulsion Drive Treads Light Treads Leg Aluminum Leg Hover Unit Airjet Flight Unit Field Propulsion Drive Utility Advanced Signal Interpreter Device Experimental Sensor Array Storage Medium Storage Unit Processor Advanced Signal Interpreter Hackware Improved System Shield Protection Layered Light Armor Plating Weapon Shock Maul Energy Gun Arc Projector Energy Cannon High-powered Disruptor Cannon Ballistic Gun Light Assault Rifle Ballistic Cannon Advanced Assault Cannon Launcher Z-bomb Delivery System Special Weapon CPS Tube Impact Weapon Shock Maul Slashing Weapon Sigix Broadsword Build | -11 -10 -10 -9 -8 -8 -8 -8 -6 -5 -4 -4 -4 -4 -4 -3 -3 -2 -2 -2 ------- Run | Yrd Mat Min Mat Mat Sto Rec Scr Fac Fac Fac Was Fac Upp Upp Res Qua Res Tes Frg Slots Evolved 16 | . . . 2 2 . . . 4 2 2 . . . . 2 . 2 . . Power 1 | . . . . . . . . . . 1 . . . . . . . . . Propulsion 4 | . . . 2 . . . . 1 1 . . . . . . . . . . Utility 9 | . . . . 2 . . . 3 1 1 . . . . 2 . . . . Weapon 2 | . . . . . . . . . . . . . . . . . 2 . . Parts Attached 216 | 7 10 8 25 26 25 1 3 13 8 13 4 3 . . . 3 7 7 53 Power 28 | 1 1 1 3 3 2 . . 2 1 2 1 . . . . . 2 . 9 Engine 13 | 1 1 . 2 2 2 . . . 1 1 . . . . . . . . 3 Core 6 | . . 1 1 1 . . . 2 . 1 . . . . . . . . . Reactor 9 | . . . . . . . . . . . 1 . . . . . 2 . 6 Propulsion 71 | 2 . 3 13 12 9 1 3 4 2 1 1 . . . . 2 1 3 14 Treads 6 | 2 . . . . 4 . . . . . . . . . . . . . . Leg 5 | . . 2 . 1 . . . . . . . . . . . . . . 2 Wheel . | . . . . . . . . . . . . . . . . . . . . Hover 23 | . . . 9 8 5 1 . . . . . . . . . . . . . Flight 37 | . . 1 4 3 . . 3 4 2 1 1 . . . . 2 1 3 12 Utility 68 | 2 3 . 2 4 5 . . 7 4 7 2 3 . . . . 4 2 23 Device 30 | 1 1 . . 1 2 . . 3 2 3 2 3 . . . . 3 . 9 Storage 6 | 1 2 . 1 . . . . . . . . . . . . . . . 2 Processor 14 | . . . . 1 . . . 2 1 1 . . . . . . . . 9 Hackware 6 | . . . . . . . . 2 1 1 . . . . . . . 1 1 Protection 12 | . . . 1 2 3 . . . . 2 . . . . . . 1 1 2 Artifact . | . . . . . . . . . . . . . . . . . . . . Weapon 49 | 2 6 4 7 7 9 . . . 1 3 . . . . . 1 . 2 7 Energy Gun 11 | 1 . . 3 5 1 . . . . . . . . . . . . 1 . Energy Cannon 2 | . . . 1 . . . . . . . . . . . . . . 1 . Ballistic Gun 24 | 1 5 4 3 . 6 . . . . . . . . . . . . . 5 Ballistic Cannon 2 | . . . . 2 . . . . . . . . . . . . . . . Launcher 5 | . 1 . . . . . . . . 2 . . . . . . . . 2 Special Weapon 3 | . . . . . 1 . . . 1 1 . . . . . . . . . Impact Weapon 1 | . . . . . 1 . . . . . . . . . . . . . . Slashing Weapon 1 | . . . . . . . . . . . . . . . . 1 . . . Piercing Weapon . | . . . . . . . . . . . . . . . . . . . . Special Melee Weapon . | . . . . . . . . . . . . . . . . . . . . Unidentified Prototypes 46 | . . . 5 2 4 . . 3 2 2 1 . . . . 2 . 5 20 Parts Lost 63 | . 1 6 13 5 7 . . 1 4 . . . . 1 1 . 1 2 21 Power 9 | . . 1 1 . 2 . . . . . . . . 1 . . . . 4 Propulsion 24 | . . 3 8 1 3 . . . . . . . . . . . . 1 8 Utility 15 | . 1 . 1 . . . . 1 3 . . . . . . . 1 1 7 Weapon 15 | . . 2 3 4 2 . . . 1 . . . . . 1 . . . 2 Highest Loss Streak 7 | . 1 4 7 2 3 . . 1 2 . . . . 1 1 . 1 1 4 To Critical Strikes 1 | . . . . . . . . . . . . . . . . . . . 1 Average Backups 7 | 4 8 14 9 9 9 9 9 4 5 4 5 5 5 4 2 4 4 5 4 Power . | . 1 1 . . . . . . . . . 1 1 . . . . . . Propulsion 3 | 2 6 8 3 2 5 5 3 2 2 2 2 2 2 2 2 1 1 2 . Utility 1 | . . 3 4 2 1 1 3 1 2 1 1 1 2 2 . 1 1 . . Weapon 1 | . 1 1 . 3 2 1 2 . . . . . . . . . 1 1 2 Tool/Special . | . . . . . . . . . . . . . . . . . . . . Unused Backups 26 | . 4 3 2 4 3 . 1 2 . 1 . . . . . . . 1 5 Power 2 | . . 1 . 1 . . . . . . . . . . . . . . . Propulsion 11 | . 4 2 . 1 2 . . . . . . . . . . . . . 2 Utility 7 | . . . 2 1 . . . 1 . 1 . . . . . . . 1 1 Weapon 5 | . . . . 1 1 . 1 1 . . . . . . . . . . 1 Tool/Special 1 | . . . . . . . . . . . . . . . . . . . 1 Average Slot Usage (%) 92 | . 99 97 83 93 97 98 94 99 94 90 99 100 100 100 97 91 82 81 73 Engine 4 | . 13 1 3 6 5 9 9 1 . . . . . . . . . . 1 Core 4 | . . 12 6 . 2 . . 4 5 9 5 5 5 9 9 9 4 4 1 Reactor 1 | . . . . . . . . . . . 4 5 5 . . . 3 4 3 Treads 4 | . 28 1 . . 10 . . . . . . . . . . . . . . Leg 1 | . . 18 . 1 . . . . . . . . . . . . . . . Hover 7 | . . . 30 16 24 36 18 . . . . . . . . . . . . Flight 15 | . . 7 . 17 . . 16 32 34 31 31 31 31 31 28 28 21 21 18 Device 14 | . 13 14 10 8 9 9 9 15 16 14 20 21 21 21 25 24 25 25 12 Storage 6 | . 14 14 11 9 9 9 9 . . . . . . . . . . . 2 Processor 7 | . . . . 3 9 9 9 13 11 10 10 10 10 10 9 9 8 8 13 Hackware 4 | . . . . . . . . 10 8 10 10 10 10 10 9 9 8 8 7 Protection 4 | . . . . 14 9 9 8 6 2 7 5 5 5 5 4 4 4 4 2 Energy Gun 1 | . 3 . 3 15 3 . . . . . . . . . . . . . . Ballistic Gun 8 | . 23 27 17 . 13 8 . . . . . . . . . . . . 2 Special Weapon 1 | . . . . . . . 4 6 5 . 4 5 5 5 4 . . . . Impact Weapon 2 | . . . . . . 7 9 6 5 5 5 5 5 5 4 . . . . Peak Build Rating 194 | 7 8 12 16 38 45 37 34 72 88 103 120 116 112 112 119 138 140 168 194 Average Rating 66 | 5 7 10 12 25 31 36 30 61 85 94 113 112 112 108 115 126 134 143 159 On Entrance 69 | . 7 8 12 9 38 32 32 29 72 77 98 116 112 112 108 116 127 134 147 Avg Prop Armor Cover (%) 2 | . . 3 . 4 4 . . . 2 . . . . . . . . . 4 Naked Turns . | . . . . . . . . . . . . . . . . . . . . Heaviest Build 57 | 12 28 30 22 30 30 28 25 19 19 33 36 38 36 36 33 39 42 42 57 Greatest Support 82 | 40 40 20 24 36 82 32 32 27 36 41 43 44 44 44 49 44 49 57 57 Greatest Overweight (x) 5 | 1 . 2 5 4 3 . 1 . . . . . . . . . . 1 1 Average Overweight (x) . | . . 1 . . . . . . . . . . . . . . . . . Largest Inventory Capacity 15 | 8 15 15 15 10 10 10 10 10 5 5 5 5 5 5 5 5 5 5 5 Average Capacity 8 | 7 9 15 10 10 10 10 10 5 5 5 5 5 5 5 5 5 5 5 5 Most Carried 15 | 7 12 15 15 10 10 10 10 9 5 5 5 5 5 5 5 5 5 5 5 Average Carried 7 | 4 8 14 9 9 9 9 9 4 5 4 4 4 5 4 2 4 4 4 4 Final Capacity 15 | 8 15 15 10 10 10 10 10 5 5 5 5 5 5 5 5 5 5 5 5 Final Carried 15 | 6 12 15 4 10 10 10 10 5 5 5 5 5 5 4 5 5 5 5 4 Scrap Suit Usage (%) 1 | . . . . . . . . . . . . . . . . . . . 3 Parts Cannibalized 2 | . . . . . . . . . . . . . . . . . . . 2 Class Distribution -------------------- 29% | Mutant 26% | Scavenger-Mutant 16% | Hacker-Ninja 10% | Scientist-Ninja 5% | Hacker-Scout 3% | Scavenger-Scout 3% | Scavenger-Sprinter Dominant Class ---------------- Mutant | -10/Materials Scavenger-Mutant | -10/Mines Scavenger-Mutant | -9/Materials Mutant | -8/Materials Scavenger-Mutant | -8/Storage Mutant | -8/Recycling Mutant | -8/Scraptown Hacker-Scout | -6/Factory Hacker-Ninja | -5/Factory Hacker-Ninja | -4/Factory Hacker-Ninja | -4/Waste Scientist-Ninja | -4/Factory Scientist-Ninja | -4/Upper Caves Scientist-Ninja | -4/Upper Caves Scientist-Ninja | -3/Research Scientist-Ninja | -3/Quarantine Hacker-Ninja | -2/Research Hacker-Ninja | -2/Testing Scavenger-Scout | -2/Protoforge Resources | -11 -10 -10 -9 -8 -8 -8 -8 -6 -5 -4 -4 -4 -4 -4 -3 -3 -2 -2 -2 ----------- Run | Yrd Mat Min Mat Mat Sto Rec Scr Fac Fac Fac Was Fac Upp Upp Res Qua Res Tes Frg Matter Collected 14547 | 297 348 335 524 289 803 103 90 100 29 226 130 30 . 10 . . 74 . 11159 Remotely . | . . . . . . . . . . . . . . . . . . . . Salvage Created 4803 | 79 642 263 785 395 1279 146 . 167 . 47 . 133 35 229 . . 74 . 529 Parts 283 | 11 44 22 60 23 84 3 . 7 . 2 . 2 . 1 . . 5 . 19 Haulers Intercepted 11 | . 2 . 3 . 4 . . 2 . . . . . . . . . . . Recyclers Shooed 1 | . . . . 1 . . . . . . . . . . . . . . . Parts Field Recycled . | . . . . . . . . . . . . . . . . . . . . Retrieved Matter . | . . . . . . . . . . . . . . . . . . . . Parts Self-Destructed 7 | . . . . . . . . . . . . . 3 4 . . . . . Prevented 2 | . . . . . . . . . . . . . . 2 . . . . . Parts Restored . | . . . . . . . . . . . . . . . . . . . . Kills | -11 -10 -10 -9 -8 -8 -8 -8 -6 -5 -4 -4 -4 -4 -4 -3 -3 -2 -2 -2 ------- Run | Yrd Mat Min Mat Mat Sto Rec Scr Fac Fac Fac Was Fac Upp Upp Res Qua Res Tes Frg Combat Hostiles Destroyed 203 | . 17 10 18 6 23 3 . . . . . 2 1 3 . . . . 120 Melee 3 | . . . . . . . . . . . . . 1 . . . . . 2 Guns 72 | . 15 10 17 4 22 . . . . . . . . . . . . . 4 Cannons 2 | . . . . 2 . . . . . . . . . . . . . . . AOE 117 | . 2 . 1 . 1 . . . . . . . . . . . . . 113 Classes Destroyed 22 | 1 4 . 2 2 1 . . . . . . . 1 . . . . . 11 Worker 4 | . . . 3 . . . . . . 1 . . . . . . . . . Builder 1 | . . . . . 1 . . . . . . . . . . . . . . Tunneler 3 | 3 . . . . . . . . . . . . . . . . . . . Hauler 11 | . 2 . 3 . 4 . . 2 . . . . . . . . . . . Recycler 3 | . . . . 2 1 . . . . . . . . . . . . . . Mechanic 8 | . . . . . . . . . . . . . . . . . . . 8 Operator 1 | . . . . . . . . . . . . . . . . . . . 1 Drone 28 | . . . . . . . . . . . . . . . . . . . 28 Watcher 10 | . 3 . 3 . 1 . . . . 1 . . . . . . 2 . . Swarmer 41 | . 6 6 10 3 7 . . . . . . . . . . . . . 9 Grunt 50 | . 11 4 7 2 4 . . . . . . 1 . 3 . . . . 18 Brawler 5 | . . . . . . . . . . . . . . . . . . . 5 Duelist 5 | . . . . . . . . . . . . . . . . . . . 5 Protector 6 | . . . . . . . . . . . . . . . . . . . 6 Sentry 16 | . . . 1 . 11 3 . . . . . 1 . . . . . . . Specialist 1 | . . . . . . . . . . . . . . . . . . . 1 Hunter 17 | . . . . 1 1 . . . . . . . . . . . . . 15 Programmer 12 | . . . . . . . . . . . . . 1 . . . . . 11 Hotshot 1 | . . . . . . . . . . . . . . . . . . . 1 Striker 8 | . . . . . . . . . . . . . . . . . . . 8 Executioner 13 | . . . . . . . . . . . . . . . . . . . 13 Elite 1 | . . . . . . . . . . . . . . . . . . . 1 Scrapoid 4 | . . . . . . . . . . . . . . . . . . . 4 Best Kill Streak 22 | 3 4 4 8 4 6 1 . 2 . 1 . 2 1 2 . . 1 . 22 Combat Bots Only 21 | . 3 4 5 2 4 1 . . . . . 2 1 2 . . . . 21 Max Kills in Single Turn 5 | 1 2 1 2 1 2 1 . 1 . 1 . 1 1 1 . . 1 . 5 Gunslinging 1 | . 1 . 1 . 1 . . . . . . . . . . . . . . Exploded 5 | . 1 . 1 . 1 . . . . . . . . . . . . . 5 Melee 1 | . . . . . . . . . . . . . 1 . . . . . 1 Uniques/NPCs Destroyed . | . . . . . . . . . . . . . . . . . . . . Combat | -11 -10 -10 -9 -8 -8 -8 -8 -6 -5 -4 -4 -4 -4 -4 -3 -3 -2 -2 -2 -------- Run | Yrd Mat Min Mat Mat Sto Rec Scr Fac Fac Fac Was Fac Upp Upp Res Qua Res Tes Frg Hostile Shots Fired 914 | . 82 59 104 64 160 3 . . 23 . . 6 4 14 31 . 35 26 303 Missed 395 | . 28 13 26 23 59 1 . . 13 . . 3 1 10 24 . 26 17 151 Hits 519 | . 54 46 78 41 101 2 . . 10 . . 3 3 4 7 . 9 9 152 Melee 15 | . . . 11 . . . . . . . . . . . . . 3 . 1 Projectile 504 | . 54 46 67 41 101 2 . . 10 . . 3 3 4 7 . 6 9 151 AOE 5 | . . . . . . 1 . . . . . . . . . . 4 . . Critical Strikes 25 | . . . 3 1 5 . . . . . . 2 . 1 . . 1 2 10 Part Disruptions 1 | . . . . . . . . . . . . . . . . . . 1 . Damage Taken 10535 | . 583 510 1137 573 1435 47 . 87 184 . 9 87 58 109 123 . 367 231 4995 Core 1769 | . 106 82 286 104 234 14 . . . . . . 20 . 24 . 31 24 844 Absorbed by Shields 59 | . . . . . . . . . . . . . . . . . . . 59 Redirected to Shielding 54 | . . . . 54 . . . . . . . . . . . . . . . Regen/Repaired (Parts) 1168 | . . . . . . . . . . . 76 27 . . . . . 244 821 Core Remaining (%) 71 | 100 . 24 28 . . . 36 100 100 . . . . 98 . 89 . . . Volleys Fired 482 | 9 78 45 74 31 110 . . . . . . . . . . . . . 135 Largest 4 | 2 2 2 2 2 2 . . . . . . . . . . . . . 4 Hottest 130 | 60 60 40 63 110 120 . . . . . . . . . . . . . 130 Shots Fired 761 | 18 145 69 132 40 201 . . . . . . . . . . . . . 156 Gun 661 | 18 142 69 131 36 201 . . . . . . . . . . . . . 64 Cannon 4 | . . . . 4 . . . . . . . . . . . . . . . Launcher 96 | . 3 . 1 . . . . . . . . . . . . . . . 92 Special . | . . . . . . . . . . . . . . . . . . . . Kinetic 499 | 9 122 69 109 4 149 . . . . . . . . . . . . . 37 Thermal 73 | 9 20 . 22 . 22 . . . . . . . . . . . . . . Explosive 96 | . 3 . 1 . . . . . . . . . . . . . . . 92 Electromagnetic 93 | . . . . 36 30 . . . . . . . . . . . . . 27 Robot Hit Streak 16 | 4 12 6 8 6 16 . . . . . . . . . . . . . 14 Robot Miss Streak 8 | 2 6 2 8 4 4 . . . . . . . . . . . . . 4 Penetration Max 1 | . . . . . . . . . . . . . . . . . . . 1 Secondary Targets 11 | . 4 . 4 . 2 . . . . . . . . . . . . . 1 Max Gunslinging Chain 1 | . 1 . 1 . 1 . . . . . . . . . . . . . 1 Shots Hit Robots 501 | 10 90 46 75 27 135 4 . 3 . 2 . 3 4 4 . . 4 . 94 Core Hits 313 | 3 42 17 34 16 52 . . 2 . 1 . . . . . . 2 . 144 Critical Kills 4 | . . . . . 1 . . 2 . . . . . . . . . . 1 Critical Parts Destroyed 20 | . 1 1 . . 1 2 . 1 . 1 . 2 3 3 . . . . 5 Critical Strikes 24 | . 1 1 . . 2 2 . 3 . 1 . 2 3 3 . . . . 6 Destroy 10 | . 1 1 . . 2 . . . . . . . . . . . . . 6 Smash 14 | . . . . . . 2 . 3 . 1 . 2 3 3 . . . . . Melee Attacks 123 | . . . . . 2 4 . 13 6 23 . 17 8 6 8 4 12 11 9 Impact 88 | . . . . . 2 4 . 13 6 23 . 17 8 6 8 1 . . . Slashing 35 | . . . . . . . . . . . . . . . . 3 12 11 9 Piercing . | . . . . . . . . . . . . . . . . . . . . Sneak Attacks 10 | . . . . . . 3 . 2 . 1 . . 1 1 . . 1 . 1 Combat Hostiles 2 | . . . . . . . . . . . . . 1 1 . . . . . Follow-up Attacks . | . . . . . . . . . . . . . . . . . . . . Damage Inflicted 53026 | 109 1119 485 1228 357 2148 295 . 232 . 136 . 199 268 326 . . 529 . 45595 Guns 6169 | 109 909 485 1092 295 2056 . . . . . . . . . . . . . 1223 Cannons 62 | . . . . 62 . . . . . . . . . . . . . . . Explosions 44372 | . 210 . 136 . 88 . . . . . . . . . . . . . 43938 Melee 2419 | . . . . . . 295 . 232 . 136 . 199 268 326 . . 529 . 434 Ramming 4 | . . . . . 4 . . . . . . . . . . . . . . Kinetic 4801 | 35 787 485 960 62 1556 . . . . . . . . . . . . . 916 Thermal 1203 | 74 122 . 132 . 361 . . . . . . . . . . . . . 514 Explosive 43701 | . 210 . 136 . . . . . . . . . . . . . . . 43355 Electromagnetic 898 | . . . . 295 227 . . . . . . . . . . . . . 376 Impact 1456 | . . . . . . 295 . 232 . 136 . 199 268 326 . . . . . Slashing 963 | . . . . . . . . . . . . . . . . . 529 . 434 Piercing . | . . . . . . . . . . . . . . . . . . . . Highest Corruption 11 | . 3 3 5 . 3 3 . 1 . . . . . . . . . 3 11 Average Corruption 4 | . 2 3 5 . 1 3 . 1 . . . . . . . . . 1 7 Corruption Purged 7 | . . . . . . . . . . . . . . . . . . . 7 Corruption Blocked . | . . . . . . . . . . . . . . . . . . . . Effects 122 | . 13 20 19 . 8 4 . 2 . . . . . . . . . . 56 Message Errors 31 | . 2 7 5 . 3 1 . . . . . . . . . . . . 13 Matter Fused 28 | . 5 6 4 . 2 2 . . . . . . . . . . . . 9 Heat Flow Errors 14 | . . 2 4 . . . . 1 . . . . . . . . . . 7 Energy Discharges 11 | . 1 2 1 . . 1 . . . . . . . . . . . . 6 Parts Rejected 5 | . . . . . . . . . . . . . . . . . . . 5 Parts Fused 1 | . . . . . . . . 1 . . . . . . . . . . . Data Loss (minor) 13 | . 3 2 1 . 1 . . . . . . . . . . . . . 6 Data Loss (major) 2 | . 1 . . . . . . . . . . . . . . . . . 1 Alerts 4 | . . . 3 . . . . . . . . . . . . . . . 1 Misdirections 4 | . . . . . . . . . . . . . . . . . . . 4 Weapon Failures 9 | . 1 1 1 . 2 . . . . . . . . . . . . . 4 Overload Shots . | . . . . . . . . . . . . . . . . . . . . Overflow Damage 8171 | . . . 36 . . 170 . 97 . 62 . 146 228 276 . . 83 . 7073 Projectiles . | . . . . . . . . . . . . . . . . . . . . Explosions 6838 | . . . 36 . . . . . . . . . . . . . . . 6802 Melee 1333 | . . . . . . 170 . 97 . 62 . 146 228 276 . . 83 . 271 Knockbacks 9 | . . . . 1 . . . . . 1 . 2 2 3 . . . . . Impact 8 | . . . . . . . . . . 1 . 2 2 3 . . . . . Kinetic 1 | . . . . 1 . . . . . . . . . . . . . . . Secondary . | . . . . . . . . . . . . . . . . . . . . Self-Inflicted Damage 396 | . . . 36 . 20 . . . . . . . . . . . . . 340 Shots 4 | . . . 1 . 1 . . . . . . . . . . . . . 2 Rammed 1 | . . . . . 1 . . . . . . . . . . . . . . Targets Rammed 2 | . . . . . 2 . . . . . . . . . . . . . . Kicked . | . . . . . . . . . . . . . . . . . . . . Crushed 1 | . . . . . 1 . . . . . . . . . . . . . . Highest Temperature 388 | . 66 226 262 158 388 . . 140 103 237 313 306 1 . 5 . 193 187 216 Average Temperature 81 | . 25 37 74 58 89 . . 34 31 83 137 137 1 . 5 . 127 124 80 Received Heat Transfer 1620 | . 255 195 231 90 468 9 . . 63 . . 9 . 39 . . . 9 252 Effects 9 | . . . . . . . . . . 2 7 . . . . . . . . Energy Bleed 2 | . . . . . . . . . . . 2 . . . . . . . . Interference 7 | . . . . . . . . . . 2 5 . . . . . . . . Siege Activations . | . . . . . . . . . . . . . . . . . . . . Martial Activations . | . . . . . . . . . . . . . . . . . . . . Shielding Activations . | . . . . . . . . . . . . . . . . . . . . Robots Disrupted 4 | . . . . 2 . . . . . . . . . . . . . . 2 Combat Hostiles 2 | . . . . 2 . . . . . . . . . . . . . . . Robots Corrupted 9 | . . . . . . 3 . . . 1 . 2 . 3 . . . . . Combat Hostiles 8 | . . . . . . 3 . . . . . 2 . 3 . . . . . Parts Fried 6 | . . . . . 1 3 . . . . . . . 1 . . . . 1 Impact Corruptions 24 | . . . . . . 5 . 1 . 2 . 4 5 7 . . . . . Robots Melted 1 | . . . . . . . . . . . . . . . . . . . 1 Combat Hostiles 1 | . . . . . . . . . . . . . . . . . . . 1 Parts Melted 1 | . . . . . . . . . . . . . . . . . . . 1 Heat Transferred 1729 | 175 275 . 300 . 729 . . . . . . . . . . . . . 250 Parts Sabotaged . | . . . . . . . . . . . . . . . . . . . . Parts Stolen . | . . . . . . . . . . . . . . . . . . . . Parts Stripped . | . . . . . . . . . . . . . . . . . . . . Power Chain Reactions 5 | . . . . . 2 . . . . . . . . . . . . . 3 Alert | -11 -10 -10 -9 -8 -8 -8 -8 -6 -5 -4 -4 -4 -4 -4 -3 -3 -2 -2 -2 ------- Run | Yrd Mat Min Mat Mat Sto Rec Scr Fac Fac Fac Was Fac Upp Upp Res Qua Res Tes Frg Maximum Alert Level 5 | . . . 2 1 1 1 . . . . . 1 . . . . . . 5 Low Security (%) 71 | 100 100 100 57 97 22 22 . 100 100 100 100 92 . . 100 100 100 100 19 Level 1 16 | . . . 39 2 77 77 . . . . . 7 . . . . . . 16 Level 2 1 | . . . 2 . . . . . . . . . . . . . . . 6 Level 3 1 | . . . . . . . . . . . . . . . . . . . 6 Level 4 2 | . . . . . . . . . . . . . . . . . . . 11 Level 5 7 | . . . . . . . . . . . . . . . . . . . 41 High Security . | . . . . . . . . . . . . . . . . . . . . Max Security . | . . . . . . . . . . . . . . . . . . . . Peak Influence 2703 | 5 157 85 408 206 369 273 . 30 195 85 66 218 . . 54 81 79 105 2703 Initial 155 | . . 25 . 155 34 123 . . . 80 7 . . . . 16 40 17 42 Average 295 | 1 79 17 188 143 277 217 . 3 67 24 14 118 . . 27 36 55 50 1188 Influence Increases 8125 | 15 509 248 830 276 781 255 . 96 324 108 80 479 65 145 90 107 101 198 3418 Destroy 0b10 Robot/C 3640 | . 340 200 480 120 460 60 . . . . . 180 20 60 . . . . 1720 Destroy 0b10 Robot/NC 385 | 15 25 . 55 10 35 . . 10 . 10 . . . . . . 10 . 215 Destroy Leader 784 | . 70 40 104 20 160 . . 4 . 2 . 60 . 10 . . 4 . 310 Allied During Kill 177 | . . 8 31 . . . . . . . . 138 . . . . . . . Successful Hack 266 | . 4 . 21 5 17 . . 27 12 30 . 10 . . 14 30 63 33 . Select Force Hacks 180 | . . . . . . 180 . . . . . . . . . . . . . Disable Machine 465 | . 15 . 30 15 75 . . . . . . 15 . . . 45 . 90 180 Anti-Garrison Action 150 | . . . . . . . . . . . . . . . . . . . 150 Destroy Structure 623 | . 40 . 4 1 19 . . 10 12 36 80 76 . . 16 2 9 15 303 Partial Spotted 405 | . . . 15 . . . . 45 90 30 . . . . 60 30 15 60 60 Lose Combat Pursuer 1050 | . 15 . 90 105 15 15 . . 210 . . . 45 75 . . . . 480 Influence Decreases 5452 | 15 444 313 462 561 547 344 228 96 159 253 100 426 88 175 60 64 143 154 820 Entered New Map 942 | . . 40 . 213 49 194 228 . . 85 13 . 20 6 . 14 33 14 33 Time Decay 3599 | 15 434 213 292 278 428 150 . 85 110 168 86 216 68 159 50 50 100 120 577 Lost Part 620 | . 10 60 130 50 70 . . 1 39 . . . . 10 10 . 10 20 210 Lost Ally 291 | . . . 40 20 . . . 10 10 . 1 210 . . . . . . . Squads Dispatched 54 | . 3 . 3 2 3 . . 6 9 2 . 7 . . 2 . 3 4 10 Investigation 30 | . 1 . 2 1 1 . . 4 8 1 . 3 . . 1 . 2 1 5 Extermination 7 | . . . . . . . . 1 1 1 . 1 . . . . . 2 1 Reinforcement 12 | . 2 . 1 1 2 . . 1 . . . . . . 1 . 1 1 2 Assault 2 | . . . . . . . . . . . . . . . . . . . 2 Garrison 3 | . . . . . . . . . . . . 3 . . . . . . . Intercept . | . . . . . . . . . . . . . . . . . . . . Searches Triggered . | . . . . . . . . . . . . . . . . . . . . Construction Impeded 1 | . . . . . 1 . . . . . . . . . . . . . . Haulers Reinforced . | . . . . . . . . . . . . . . . . . . . . Active Scanning Responses . | . . . . . . . . . . . . . . . . . . . . Cargo Convoy Interrupts . | . . . . . . . . . . . . . . . . . . . . Stealth | -11 -10 -10 -9 -8 -8 -8 -8 -6 -5 -4 -4 -4 -4 -4 -3 -3 -2 -2 -2 --------- Run | Yrd Mat Min Mat Mat Sto Rec Scr Fac Fac Fac Was Fac Upp Upp Res Qua Res Tes Frg Distress Signals 10 | . 2 . . . 2 . . . 2 . . . . . . . . 1 3 Communications Jammed 19 | . . . . . . . . . . . . . . . 19 . . . . Distress Signals 19 | . . . . . . . . . . . . . . . 19 . . . . Times Spotted 458 | . 24 9 36 17 33 2 . 3 21 1 5 8 5 9 12 2 12 11 248 Peak Tracking Total 24 | . 6 5 7 6 4 2 . 3 7 1 3 3 4 4 8 1 10 7 24 Tactical Retreats 42 | . 1 . 3 4 1 1 . . 5 . . . 2 2 1 . 1 1 20 ECM-based Alert Blocks 15 | . . . . . . . . . . . . . . . 1 . 4 2 8 Traps | -11 -10 -10 -9 -8 -8 -8 -8 -6 -5 -4 -4 -4 -4 -4 -3 -3 -2 -2 -2 ------- Run | Yrd Mat Min Mat Mat Sto Rec Scr Fac Fac Fac Was Fac Upp Upp Res Qua Res Tes Frg Traps Triggered 20 | . 5 . 1 . 3 . . 3 1 1 . 1 . . . . . 1 4 Indirectly . | . . . . . . . . . . . . . . . . . . . . Trap Hack Attempts . | . . . . . . . . . . . . . . . . . . . . Triggered . | . . . . . . . . . . . . . . . . . . . . Disarmed . | . . . . . . . . . . . . . . . . . . . . Reprogrammed . | . . . . . . . . . . . . . . . . . . . . Reused . | . . . . . . . . . . . . . . . . . . . . Traps Extracted . | . . . . . . . . . . . . . . . . . . . . Installed . | . . . . . . . . . . . . . . . . . . . . Triggered . | . . . . . . . . . . . . . . . . . . . . Machines | -11 -10 -10 -9 -8 -8 -8 -8 -6 -5 -4 -4 -4 -4 -4 -3 -3 -2 -2 -2 ---------- Run | Yrd Mat Min Mat Mat Sto Rec Scr Fac Fac Fac Was Fac Upp Upp Res Qua Res Tes Frg Machines Disabled 32 | . 1 . 2 1 5 . . . . . . 1 . . . 3 . 6 13 Max in Single Turn 2 | . 1 . 1 1 1 . . . . . . . . . . 1 . 1 2 Garrison Access 4 | . . . . . 1 . . 2 . . . . . . . . . . 1 Machines Repaired . | . . . . . . . . . . . . . . . . . . . . Machines Dismantled 1 | . . . . . 1 . . . . . . . . . . . . . . Machines Sabotaged . | . . . . . . . . . . . . . . . . . . . . Overloaded Fab Kills . | . . . . . . . . . . . . . . . . . . . . Hacking | -11 -10 -10 -9 -8 -8 -8 -8 -6 -5 -4 -4 -4 -4 -4 -3 -3 -2 -2 -2 --------- Run | Yrd Mat Min Mat Mat Sto Rec Scr Fac Fac Fac Was Fac Upp Upp Res Qua Res Tes Frg Machines Accessed 104 | . 3 . 5 2 13 11 1 12 13 8 . 5 . 1 1 8 6 7 8 Terminals 61 | . 3 . 4 2 10 5 . 4 5 5 . 1 . . 1 7 4 6 4 Fabricators 3 | . . . . . . . . 1 1 1 . . . . . . . . . Repair Stations . | . . . . . . . . . . . . . . . . . . . . Recycling Units 27 | . . . . . 2 6 . 3 7 1 . 3 . . . . 2 . 3 Scanalyzers 6 | . . . 1 . . . . 1 . 1 . 1 . . . 1 . 1 . Garrison Access 5 | . . . . . 1 . . 3 . . . . . . . . . . 1 Total Hacks 237 | . 7 . 15 7 30 18 2 25 30 18 . 9 . 1 4 20 10 14 27 Successful 131 | . 4 . 8 2 19 14 2 15 18 10 . 5 . 1 1 10 7 5 10 Failed 105 | . 3 . 6 5 11 4 . 10 12 8 . 4 . . 3 10 3 9 17 Catastrophic 13 | . . . . . 1 . . 2 1 1 . . . . 1 2 . 2 3 Database Lockouts 1 | . . . 1 . . . . . . . . . . . . . . . . Manual 165 | . 7 . 13 7 16 18 . 16 26 14 . 5 . . 1 13 9 6 14 Terminals 166 | . 7 . 13 7 22 11 . 14 22 13 . 1 . . 4 19 8 13 12 Fabricators 4 | . . . . . . . . 1 1 2 . . . . . . . . . Repair Stations . | . . . . . . . . . . . . . . . . . . . . Recycling Units 40 | . . . . . 5 7 . 4 7 1 . 4 . . . . 2 . 10 Scanalyzers 12 | . . . 2 . . . . 2 . 2 . 4 . . . 1 . 1 . Garrison Access 12 | . . . . . 3 . . 4 . . . . . . . . . . 5 Terminal Hacks 29 | . 1 . . . 6 . 2 1 1 1 . . . 1 1 5 2 2 6 Record 10 | . . . . . . . 2 . . . . . . . . 3 . . 5 Part Schematic 3 | . 1 . . . 1 . . 1 . . . . . . . . . . . Open Door 4 | . . . . . 2 . . . . . . . . 1 . . . 1 . Level Access Points 2 | . . . . . . . . . 1 . . . . . . . 1 . . Branch Access Points 1 | . . . . . . . . . . . . . . . 1 . . . . Recycling Unit Index 2 | . . . . . . . . . . . . . . . . 1 1 . . Alert Level 2 | . . . . . 1 . . . . 1 . . . . . . . . . Hauler Manifests 1 | . . . . . 1 . . . . . . . . . . . . . . Zone Layout 3 | . . . . . 1 . . . . . . . . . . 1 . . 1 Protovariant Controls 1 | . . . . . . . . . . . . . . . . . . 1 . Fabricator Hacks 3 | . . . . . . . . 1 1 1 . . . . . . . . . Network Status 3 | . . . . . . . . 1 1 1 . . . . . . . . . Repair Station Hacks . | . . . . . . . . . . . . . . . . . . . . Recycling Unit Hacks 3 | . . . . . 3 . . . . . . . . . . . . . . Report Inventory 1 | . . . . . 1 . . . . . . . . . . . . . . Retrieve Components 2 | . . . . . 2 . . . . . . . . . . . . . . Scanalyzer 9 | . . . 1 . . . . 2 . 2 . 2 . . . 1 . 1 . Retrieve Study 9 | . . . 1 . . . . 2 . 2 . 2 . . . 1 . 1 . Garrison Access Hacks 3 | . . . . . 1 . . 2 . . . . . . . . . . . Seal Access 3 | . . . . . 1 . . 2 . . . . . . . . . . . Unauthorized Hacks 83 | . 3 . 7 2 9 13 . 9 16 6 . 3 . . . 4 5 2 4 Terminals 58 | . 3 . 7 2 9 7 . 6 9 5 . . . . . 4 3 2 1 Assimilate 3 | . . . 1 . . . . 1 1 . . . . . . . . . . Botnet 35 | . 3 . 4 1 4 3 . 3 4 3 . . . . . 4 3 2 1 Skim 20 | . . . 2 1 5 4 . 2 4 2 . . . . . . . . . Fabricators . | . . . . . . . . . . . . . . . . . . . . Repair Stations . | . . . . . . . . . . . . . . . . . . . . Recycling Units 25 | . . . . . . 6 . 3 7 1 . 3 . . . . 2 . 3 Tunnel 6 | . . . . . . 6 . . . . . . . . . . . . . Fedlink 19 | . . . . . . . . 3 7 1 . 3 . . . . 2 . 3 Scanalyzers . | . . . . . . . . . . . . . . . . . . . . Garrison Access . | . . . . . . . . . . . . . . . . . . . . Data Cores Recovered 2 | . . . 1 . . . . . . . . . . . . . . . 1 Used . | . . . . . . . . . . . . . . . . . . . . Hacking Detections 47 | . 2 . 3 2 9 4 . 4 3 2 . 2 . . 1 4 3 3 5 Full Trace Events 9 | . . . 1 1 3 . . 1 1 . . . . . 1 . . . 1 Feedback Events 2 | . . . . . 1 . . . 1 . . . . . . . . . . Corruption 1 | . . . . . 1 . . . . . . . . . . . . . . Hackware Fried 1 | . . . . . . . . . 1 . . . . . . . . . . Feedback Blocked . | . . . . . . . . . . . . . . . . . . . . Robot Schematics Acquired . | . . . . . . . . . . . . . . . . . . . . Robots Built . | . . . . . . . . . . . . . . . . . . . . Authchips . | . . . . . . . . . . . . . . . . . . . . Time . | . . . . . . . . . . . . . . . . . . . . Total Robot Build Rating . | . . . . . . . . . . . . . . . . . . . . Part Schematics Acquired 3 | . 1 . . . 1 . . 1 . . . . . . . . . . . Parts Built . | . . . . . . . . . . . . . . . . . . . . Authchips . | . . . . . . . . . . . . . . . . . . . . Time . | . . . . . . . . . . . . . . . . . . . . Total Part Build Rating . | . . . . . . . . . . . . . . . . . . . . Part Studies Acquired 8 | . . . 1 . . . . 2 . 2 . 1 . . . 1 . 1 . Parts Repaired . | . . . . . . . . . . . . . . . . . . . . Time . | . . . . . . . . . . . . . . . . . . . . Parts Recycled . | . . . . . . . . . . . . . . . . . . . . Recycled Matter . | . . . . . . . . . . . . . . . . . . . . Retrieved Matter . | . . . . . . . . . . . . . . . . . . . . Retrieved Components 18 | . . . . . 18 . . . . . . . . . . . . . . Parts Scanalyzed . | . . . . . . . . . . . . . . . . . . . . Part Schematics Acquired . | . . . . . . . . . . . . . . . . . . . . Parts Damaged . | . . . . . . . . . . . . . . . . . . . . Bothacking | -11 -10 -10 -9 -8 -8 -8 -8 -6 -5 -4 -4 -4 -4 -4 -3 -3 -2 -2 -2 ------------ Run | Yrd Mat Min Mat Mat Sto Rec Scr Fac Fac Fac Was Fac Upp Upp Res Qua Res Tes Frg Used RIF Installer . | . . . . . . . . . . . . . . . . . . . . Robots Hacked . | . . . . . . . . . . . . . . . . . . . . Non-combat . | . . . . . . . . . . . . . . . . . . . . Combat . | . . . . . . . . . . . . . . . . . . . . Robot Hacks Applied . | . . . . . . . . . . . . . . . . . . . . Relay Couplers Released 1 | . . . . . . . . . . . . . . . . . . . 1 Machine Destruction 1 | . . . . . . . . . . . . . . . . . . . 1 Fabnet Peak Effective % . | . . . . . . . . . . . . . . . . . . . . Robots Rewired 1 | . . . . 1 . . . . . . . . . . . . . . . Allies Hacked . | . . . . . . . . . . . . . . . . . . . . Hacks Repelled 3 | . . . . . . . . . . . . . . . . . . . 3 Allies | -11 -10 -10 -9 -8 -8 -8 -8 -6 -5 -4 -4 -4 -4 -4 -3 -3 -2 -2 -2 -------- Run | Yrd Mat Min Mat Mat Sto Rec Scr Fac Fac Fac Was Fac Upp Upp Res Qua Res Tes Frg Total Allies 24 | . . 2 . 1 . . . 1 1 . 19 . . . . . . . . Largest Group 19 | . . 2 2 1 . . . 1 1 . 19 13 . . . . . . . Highest-Rated Group 684 | . . 45 45 16 . . . 10 10 . 684 534 . . . . . . . Highest-Rated Ally 50 | . . 31 31 16 . . . 10 10 . 50 50 . . . . . . . Total Orders . | . . . . . . . . . . . . . . . . . . . . Ally Attacks 173 | . . . 24 3 . . . . . . 72 74 . . . . . . . Total Damage 5960 | . . . 290 33 . . . . . . 3504 2133 . . . . . . . Kills 25 | . . . 8 . . . . . . . 9 8 . . . . . . . Allies Corrupted 2 | . . . . . . . . . . . . 2 . . . . . . . Allies Melted 2 | . . . . . . . . . . . . . . . . . . . 2 Intel | -11 -10 -10 -9 -8 -8 -8 -8 -6 -5 -4 -4 -4 -4 -4 -3 -3 -2 -2 -2 ------- Run | Yrd Mat Min Mat Mat Sto Rec Scr Fac Fac Fac Was Fac Upp Upp Res Qua Res Tes Frg Active Infowar (turns) 8449 | 52 1334 1192 647 . 2 . . 503 270 493 378 525 165 428 117 110 208 251 1774 Optics 5207 | . . . . . . . . 503 270 493 363 525 165 428 117 110 208 251 1774 Sensors 4553 | . . . . . 2 . . 501 270 493 363 525 165 428 117 110 202 251 1126 Structural 2080 | . 241 1192 647 . . . . . . . . . . . . . . . . Seismic 1167 | 52 1093 . . . . . . 22 . . . . . . . . . . . Jamming 2595 | . . . . . . . . . 8 478 312 525 165 428 117 110 208 244 . ECM 386 | . . . . . . . . 2 . 1 1 . . . 56 7 32 183 104 Robot Analysis Total . | . . . . . . . . . . . . . . . . . . . . Derelict Logs Recovered 6 | . . 3 . . . . . . . . . . 1 2 . . . . . Drone Launches . | . . . . . . . . . . . . . . . . . . . . Drone Recoveries . | . . . . . . . . . . . . . . . . . . . . Exploration | -11 -10 -10 -9 -8 -8 -8 -8 -6 -5 -4 -4 -4 -4 -4 -3 -3 -2 -2 -2 ------------- Run | Yrd Mat Min Mat Mat Sto Rec Scr Fac Fac Fac Was Fac Upp Upp Res Qua Res Tes Frg Turns Passed 11494 | 132 1343 1192 666 619 1041 301 978 503 270 493 378 525 165 428 117 110 208 251 1774 Spaces Moved 15443 | 66 628 457 594 404 673 571 1476 1078 840 759 443 695 482 1018 323 372 634 654 3276 Core 19 | 18 . . 1 . . . . . . . . . . . . . . . . Treads 895 | 48 628 13 . . 206 . . . . . . . . . . . . . . Legs 444 | . . 444 . . . . . . . . . . . . . . . . . Wheels . | . . . . . . . . . . . . . . . . . . . . Hover 2888 | . . . 559 246 467 571 1045 . . . . . . . . . . . . Flight 11197 | . . . 34 158 . . 431 1078 840 759 443 695 482 1018 323 372 634 654 3276 Fastest Speed 6 | 50 160 190 31 31 48 48 48 21 21 22 23 24 24 24 16 22 13 6 6 Average Speed 47 | 130 160 229 62 94 83 48 64 23 21 22 23 24 24 24 23 22 23 22 30 Slowest Speed 300 | 160 160 260 300 300 280 48 106 27 24 23 28 24 24 24 24 24 24 98 122 Overloaded Moves 191 | . . . . . . . . . . . . . . . 5 . 30 36 120 Propulsion Burnouts . | . . . . . . . . . . . . . . . . . . . . Robots Hopped 65 | . . . . . . . . 3 5 3 . 1 . . 7 1 8 13 24 Potential Cave-ins 1 | . . . . . . . . . . . . . . . . . . . 1 Cave-ins Triggered . | . . . . . . . . . . . . . . . . . . . . Teleports 1 | . . . . . . . . . . . . . . . . 1 . . . Exploration Rate (%) 54 | 5 92 76 57 20 93 92 86 36 30 14 96 15 77 91 13 53 19 69 55 Regions Visited 19 Branch Regions 9 Pre-discovered Areas 8 | . . 1 . . . 6 . 1 . . . . . . . . . . . Known Exits Taken 12 | . . . 1 1 1 . . 1 1 . . 1 1 1 1 1 1 1 . Unknown Exits Taken 5 | 1 1 1 . . . 1 1 . . . . . . . . . . . . Scrap Searched 9 | . . 1 . . . . 4 . . . . . 2 2 . . . . . Spaces Dug 66 | . . . . . . . . 10 6 18 . 14 . . 8 1 3 5 1 Terrain Destroyed 299 | . 38 . 3 1 15 . . 10 6 18 . 14 . . 8 1 3 5 177 Melee 66 | . . . . . . . . 10 6 18 . 14 . . 8 1 3 5 1 Projectile 12 | . . . . 1 5 . . . . . . . . . . . . . 6 AOE 221 | . 38 . 3 . 10 . . . . . . . . . . . . . 170 Terrain Rammed . | . . . . . . . . . . . . . . . . . . . . Walls Destroyed . | . . . . . . . . . . . . . . . . . . . . Machines Disabled . | . . . . . . . . . . . . . . . . . . . . Actions | -11 -10 -10 -9 -8 -8 -8 -8 -6 -5 -4 -4 -4 -4 -4 -3 -3 -2 -2 -2 --------- Run | Yrd Mat Min Mat Mat Sto Rec Scr Fac Fac Fac Was Fac Upp Upp Res Qua Res Tes Frg Total 18494 | 93 835 540 754 604 935 589 1497 1302 909 1030 714 1017 514 1188 339 389 666 726 3853 Wait 1838 | . 92 15 36 82 75 10 2 177 55 220 258 300 25 164 12 6 8 55 246 Move 15305 | 65 627 456 593 403 672 570 1475 1071 829 754 442 692 481 1017 309 369 618 629 3233 Hop 54 | . . . . . . . . 3 5 2 . 1 . . 6 1 7 11 18 Pick Up 119 | 12 11 11 3 20 9 1 6 6 . 2 3 1 . . 2 2 4 1 25 Fast Attach 122 | 1 7 1 14 13 15 . 1 7 6 10 2 1 . . . 2 3 7 32 Attach 94 | 6 . 5 9 11 3 1 5 7 . 3 2 . . 1 2 . 1 . 38 Detach 25 | . . . . 3 . 1 . 1 . 3 . . . . . . . 1 16 Swap 86 | . 8 2 7 7 14 1 2 4 3 3 3 2 . . . 2 4 2 22 Drop 187 | . 12 5 18 22 25 1 6 13 5 10 4 3 . . . 3 9 9 42 Fire 482 | 9 78 45 74 31 110 . . . . . . . . . . . . . 135 Melee 123 | . . . . . 2 4 . 13 6 23 . 17 8 6 8 4 12 11 9 Ram . | . . . . . . . . . . . . . . . . . . . . Kick . | . . . . . . . . . . . . . . . . . . . . Crush 2 | . . . . . 2 . . . . . . . . . . . . . . Escape Stasis 36 | . . . . . . . . . . . . . . . . . . . 36 Rewire 13 | . . . . 12 . . . . . . . . . . . . . . 1 Trap . | . . . . . . . . . . . . . . . . . . . . Miscellaneous 8 | . . . . . 8 . . . . . . . . . . . . . . Route ------- -11/Scrapyard -10/Materials (discovered 4 exits: *Mat x3 / [*Min]) -10/Mines (discovered 3 exits: *Mat / [Exi] / [*Sub]) -9/Materials (discovered 2 exits: *Mat x2) -8/Materials -8/Storage (discovered 2 exits: [*Fac] / *Rec) -8/Recycling (discovered 2 exits: *Fac / *Scr) -8/Scraptown (discovered 2 exits: *Fac x2) -6/Factory (discovered 5 exits: *Fac x4 / Low) -5/Factory (discovered 5 exits: *Fac x4 / [*Upp]) -4/Factory -4/Waste -4/Factory -4/Upper Caves -4/Upper Caves (discovered 2 exits: *Res / *War) -3/Research (discovered 5 exits: *Res x2 / Arm / *Qua x2) -3/Quarantine -2/Research (discovered 4 exits: Acc x3 / *Tes) -2/Testing (discovered 2 exits: *Sec / *Frg) -2/Protoforge History --------- Turn | Location | Event 8 | -11/Scrapyard | Discovered new exit (range 15) 133 | -11/Scrapyard | Entered Materials 145 | -10/Materials | Discovered new exit (range 10) 305 | -10/Materials | Build established: Mutant 671 | -10/Materials | Discovered new exit (range 5) 1100 | -10/Materials | Discovered new exit (range 15) 1213 | -10/Materials | Discovered new exit (range 13) 1476 | -10/Materials | Entered Mines 1495 | -10/Mines | Core integrity fell below 50% 1606 | -10/Mines | Lost 4 parts (1p1n2w) 1744 | -10/Mines | Found a damaged Exp. Sensor Array with a note attached 1748 | -10/Mines | Found Prototype Device 1787 | -10/Mines | Learned 2 Materials zone layouts 1812 | -10/Mines | Found a Scrap Suit stashed away for nefarious purposes 1861 | -10/Mines | Discovered new exit (range 8) 1921 | -10/Mines | Build established: Scavenger-Mutant 1996 | -10/Mines | Learned location of Zion (-6) 2169 | -10/Mines | Joined a pair of Derelicts in attacking an 0b10 outpost 2418 | -10/Mines | Discovered new exit (range 6) 2452 | -10/Mines | Deemed a non-threat by the Exiles lab entrance 2452 | -10/Mines | Discovered new exit (range 6) 2668 | -10/Mines | Entered Materials 2668 | -9/Materials | Accompanied by 2 allies 2668 | -9/Materials | Evolved 2 slots: Propulsion x2 2669 | -9/Materials | Identified exit to Materials 2673 | -9/Materials | Led the pair of lost Derelicts to an unsafe place 2929 | -9/Materials | Central database locked down 3089 | -9/Materials | Lost 4 parts (1p3n) 3144 | -9/Materials | Discovered exit to Materials (range 3) 3263 | -9/Materials | Core integrity fell below 50% 3334 | -9/Materials | Entered another Materials area 3334 | -8/Materials | Evolved 2 slots: Utility x2 3335 | -8/Materials | Identified exit to Storage 3346 | -8/Materials | Lost 7 parts (3n1u3w) 3882 | -8/Materials | Found Prototype Launcher 3882 | -8/Materials | Identified Rocket Array 3885 | -8/Materials | Found Rocket Array 3941 | -8/Materials | Build established: Mutant 3953 | -8/Materials | Entered Storage 3994 | -8/Storage | Identified Exp. Sensor Array 4254 | -8/Storage | Discovered new exit (range 12) 4383 | -8/Storage | Lost 3 parts (3n) 4563 | -8/Storage | Build established: Scavenger-Mutant 4668 | -8/Storage | Identified exit to Recycling 4767 | -8/Storage | Learned 2 Lower Caves zone layouts 4799 | -8/Storage | Learned 2 Lower Caves zone layouts 4821 | -8/Storage | Learned location of 1 exit from Extension 4855 | -8/Storage | Learned 12 Factory zone layouts 4889 | -8/Storage | Core integrity fell below 50% 4901 | -8/Storage | Learned Factory stockpile data 4992 | -8/Storage | Used back door to open Recycling access 4994 | -8/Storage | Entered Recycling 5087 | -8/Recycling | Discovered new exit (range 10) 5111 | -8/Recycling | Build established: Mutant 5281 | -8/Recycling | Scanned before Scraplab entrance 5290 | -8/Recycling | Entered Scraplab 5294 | -8/Recycling | Discovered new exit (range 2) 5295 | -8/Recycling | Entered Scraptown 5295 | -8/Scraptown | System corruption cleaned by C-Scrubber 5327 | -8/Scraptown | Heard Great Nut preacher, LISTEN AND RECITE! 5392 | -8/Scraptown | Discovered new exit (range 9) 5419 | -8/Scraptown | Visited Red Mages 5433 | -8/Scraptown | Visited Assassins FH 5440 | -8/Scraptown | Visited Spacefarers 5458 | -8/Scraptown | Visited Cyclists 5531 | -8/Scraptown | Visited The Evicted 5537 | -8/Scraptown | Visited CPS Storage 5544 | -8/Scraptown | Visited UFD Registry 5544 | -8/Scraptown | Registered with UFD as "Kineticore" 5557 | -8/Scraptown | Visited Supply Room 5568 | -8/Scraptown | Visited Junk Repository 5583 | -8/Scraptown | Visited Junk Cannon Lab 5593 | -8/Scraptown | Visited LU-1G1's Boring Crew 5600 | -8/Scraptown | Visited Supply Room 5613 | -8/Scraptown | Visited Science Testing Area 5620 | -8/Scraptown | Visited Curators Association 5638 | -8/Scraptown | Visited Research Penetration Think Tank 5660 | -8/Scraptown | Visited Scrapoid Research Area 5668 | -8/Scraptown | Visited Chapter 10 6098 | -8/Scraptown | Build established: Scavenger-Mutant 6206 | -8/Scraptown | Met Optimus 6206 | -8/Scraptown | Accepted into 0bPrime 6266 | -8/Scraptown | Discovered new exit (range 5) 6273 | -8/Scraptown | Entered Factory 6273 | -6/Factory | Evolved 4 slots: Propulsion x1, Utility x3 6274 | -6/Factory | Identified exit to Factory 6274 | -6/Factory | Identified exit to Lower Caves 6447 | -6/Factory | Discovered exit to Factory (range 10) 6507 | -6/Factory | Loaded intel: 8 recycling unit locations 6535 | -6/Factory | Noticed a derelict Sapper rigging charges 6536 | -6/Factory | Learned location of Protoforge (-2) 6727 | -6/Factory | Discovered exit to Factory (range 9) 6756 | -6/Factory | Build established: Hacker-Scout 6776 | -6/Factory | Entered another Factory area 6776 | -5/Factory | Evolved 2 slots: Propulsion x1, Utility x1 6786 | -5/Factory | Loaded intel: 8 recycling unit locations 6848 | -5/Factory | Imp. Hacking Suite fried by hacking feedback 6859 | -5/Factory | Discovered new exit (range 10) 6861 | -5/Factory | Identified exit to Factory 6995 | -5/Factory | Discovered new exit (range 11) 7019 | -5/Factory | Spotted B-75 Beast 7046 | -5/Factory | Entered another Factory area 7046 | -4/Factory | Evolved 2 slots: Power x1, Utility x1 7137 | -4/Factory | Discovered new exit (range 4) 7138 | -4/Factory | Identified exit to Upper Caves 7161 | -4/Factory | Found Prototype Launcher 7161 | -4/Factory | Identified Com. Tesla Bomb Launcher 7228 | -4/Factory | Build established: Hacker-Ninja 7538 | -4/Factory | Loaded intel: 8 recycling unit locations 7539 | -4/Factory | Sucked down chute 7539 | -4/Factory | Entered Waste 7545 | -4/Waste | Spotted C-40 Crusher 7549 | -4/Waste | Warlord forces began an assault 7554 | -4/Waste | Spotted C-40 Crusher 7569 | -4/Waste | Spotted C-40 Crusher 7581 | -4/Waste | Spotted C-40 Crusher 7583 | -4/Waste | Spotted C-40 Crusher 7583 | -4/Waste | Spotted C-40 Crusher 7605 | -4/Waste | Allies destroyed C-40 Crusher 7606 | -4/Waste | Allies destroyed C-40 Crusher 7621 | -4/Waste | Discovered new exit (range 11) 7634 | -4/Waste | Lost 4 allies 7658 | -4/Waste | Found Prototype Device 7658 | -4/Waste | Identified Exp. Transmission Jammer 7834 | -4/Waste | Identified exit to Factory 7917 | -4/Waste | Entered Factory 7917 | -4/Factory | Accompanied by 13 allies 7975 | -4/Factory | Loaded intel: 8 recycling unit locations 8000 | -4/Factory | Garrison activated, responded to threat 8381 | -4/Factory | Discovered exit to Upper Caves (range 14) 8405 | -4/Factory | Build established: Scientist-Ninja 8442 | -4/Factory | Entered Upper Caves 8443 | -4/Upper Caves | Encountered a Warlord checkpoint 8543 | -4/Upper Caves | Learned 12 Research zone layouts 8594 | -4/Upper Caves | Discovered new exit (range 9) 8607 | -4/Upper Caves | Identified exit to Upper Caves 8607 | -4/Upper Caves | Entered another Upper Caves area 8613 | -4/Upper Caves | Attracted the attention of an 0b10 checkpoint 8626 | -4/Upper Caves | Encountered a Warlord checkpoint 8638 | -4/Upper Caves | Learned Research security intel 8649 | -4/Upper Caves | Entered a destroyed Warlord outpost 8655 | -4/Upper Caves | Discovered new exit (range 12) 8769 | -4/Upper Caves | Lost 3 allies 8786 | -4/Upper Caves | Learned 4 Research zone layouts 8809 | -4/Upper Caves | Discovered new exit (range 7) 8810 | -4/Upper Caves | Identified exit to Warlord 9034 | -4/Upper Caves | Identified exit to Research 9035 | -4/Upper Caves | Entered Research 9035 | -3/Research | Evolved 2 slots: Utility x2 9036 | -3/Research | Identified exit to Quarantine 9036 | -3/Research | Identified exit to Research 9054 | -3/Research | Identified exit to Armory 9098 | -3/Research | Spotted B-86 Titan 9103 | -3/Research | Discovered exit to Research (range 11) 9152 | -3/Research | Entered Quarantine 9162 | -3/Quarantine | Found Alien Slashing Weapon 9162 | -3/Quarantine | Identified Sigix Broadsword 9176 | -3/Quarantine | Found Alien Artifact 9176 | -3/Quarantine | Identified Transdimensional Reconstructor 9176 | -3/Quarantine | Warped through subspace 9190 | -3/Quarantine | Discovered exit to Research (range 17) 9198 | -3/Quarantine | Found Alien Artifact 9262 | -3/Quarantine | Entered Research 9262 | -2/Research | Evolved 2 slots: Weapon x2 9390 | -2/Research | Loaded intel: 5 recycling unit locations 9399 | -2/Research | Identified exit to Access 9433 | -2/Research | Discovered new exit (range 19) 9469 | -2/Research | Identified exit to Testing 9470 | -2/Research | Entered Testing 9539 | -2/Testing | Found Prototype Launcher 9548 | -2/Testing | Found Prototype Energy Cannon 9548 | -2/Testing | Identified Hpw. Disruptor Cannon 9570 | -2/Testing | Build established: Hacker-Ninja 9620 | -2/Testing | Spotted Superbehemoth 9646 | -2/Testing | Found Prototype Hackware 9646 | -2/Testing | Identified Ghost Barrier 9660 | -2/Testing | Found Prototype Energy Gun 9660 | -2/Testing | Identified Tachyon Dispersion Ray 9707 | -2/Testing | Spotted Fortress 9719 | -2/Testing | Discovered new exit (range 6) 9719 | -2/Testing | Discovered new exit (range 6) 9720 | -2/Testing | Identified exit to Section 7 9721 | -2/Testing | Identified exit to Protoforge 9721 | -2/Testing | Entered Protoforge 9740 | -2/Protoforge | Superfortress began startup sequence 9813 | -2/Protoforge | Spotted AP7-3 9813 | -2/Protoforge | Spotted AP7-3 9832 | -2/Protoforge | Spotted Hotshot 9832 | -2/Protoforge | Spotted Hotshot 9878 | -2/Protoforge | Spotted V576-i 9878 | -2/Protoforge | Spotted V500-r 9907 | -2/Protoforge | Spotted EXE-6 9909 | -2/Protoforge | Spotted EXE-6 9920 | -2/Protoforge | UFD initiated attack on Protoforge (Readiness: High) 9920 | -2/Protoforge | Loaded intel: 3 recycling unit locations 9968 | -2/Protoforge | Optimus greeted in Protoforge 9985 | -2/Protoforge | Found Prototype Ballistic Gun 9985 | -2/Protoforge | Identified Cep. XC Strikerail 9987 | -2/Protoforge | Found Prototype Processor 9987 | -2/Protoforge | Identified Exp. Core Analyzer 9990 | -2/Protoforge | Found Prototype Processor 9990 | -2/Protoforge | Identified Exp. Armor Integrity Analyzer 9992 | -2/Protoforge | Found Cep. XC Strikerail 10003 | -2/Protoforge | Found Cep. XC Strikerail 10011 | -2/Protoforge | Lost 3 allies 10023 | -2/Protoforge | Identified Z-bomb Delivery System 10043 | -2/Protoforge | Spotted EXE-6 10047 | -2/Protoforge | Spotted EXE-6 10079 | -2/Protoforge | Found Cep. XC Strikerail 10083 | -2/Protoforge | Found Exp. Core Analyzer 10158 | -2/Protoforge | Lost 4 allies 10215 | -2/Protoforge | UFD reported confirmed Drillbomb installation 10226 | -2/Protoforge | Spotted Striker 10254 | -2/Protoforge | Spotted Overlord 10283 | -2/Protoforge | UFD reported confirmed Drillbomb installation 10322 | -2/Protoforge | Spotted Executioner 10330 | -2/Protoforge | Spotted Executioner 10332 | -2/Protoforge | Destroyed 7 combat bots 10335 | -2/Protoforge | Spotted Executioner 10342 | -2/Protoforge | System corruption reached 10% 10377 | -2/Protoforge | Destroyed 7 combat bots 10379 | -2/Protoforge | Spotted Striker 10379 | -2/Protoforge | Spotted Striker 10381 | -2/Protoforge | Lost 18 allies 10388 | -2/Protoforge | Destroyed Striker 10390 | -2/Protoforge | Destroyed Striker 10391 | -2/Protoforge | Spotted Striker 10394 | -2/Protoforge | Spotted Striker 10394 | -2/Protoforge | Spotted Executioner 10397 | -2/Protoforge | Destroyed Executioner 10401 | -2/Protoforge | Destroyed Striker 10407 | -2/Protoforge | Spotted Striker 10417 | -2/Protoforge | Destroyed Striker 10422 | -2/Protoforge | Found Prototype Device 10422 | -2/Protoforge | Identified Exp. Weapon Cycler 10427 | -2/Protoforge | Found Prototype Device 10427 | -2/Protoforge | Identified Adv. Kinecellerator 10428 | -2/Protoforge | Spotted Striker 10430 | -2/Protoforge | Found Prototype Processor 10430 | -2/Protoforge | Identified Exp. Targeting Computer 10430 | -2/Protoforge | Spotted Striker 10437 | -2/Protoforge | Destroyed Striker 10446 | -2/Protoforge | Lost 4 allies 10529 | -2/Protoforge | Spotted Executioner 10530 | -2/Protoforge | Spotted Striker 10533 | -2/Protoforge | Destroyed 21 combat bots 10543 | -2/Protoforge | Lost 10 allies 10543 | -2/Protoforge | Spotted Executioner 10543 | -2/Protoforge | Destroyed Striker 10543 | -2/Protoforge | Destroyed Executioner 10544 | -2/Protoforge | Spotted Striker 10562 | -2/Protoforge | Spotted Executioner 10563 | -2/Protoforge | Destroyed Executioner 10576 | -2/Protoforge | Destroyed Hotshot 10591 | -2/Protoforge | Spotted Executioner 10591 | -2/Protoforge | Spotted Executioner 10595 | -2/Protoforge | Lost 4 allies 10597 | -2/Protoforge | Destroyed 12 combat bots 10597 | -2/Protoforge | Spotted Striker 10597 | -2/Protoforge | Spotted Striker 10642 | -2/Protoforge | Destroyed Executioner 10642 | -2/Protoforge | Destroyed Executioner 10672 | -2/Protoforge | Lost 6 allies 10675 | -2/Protoforge | Spotted Striker 10676 | -2/Protoforge | Spotted Striker 10682 | -2/Protoforge | Destroyed 11 combat bots 10692 | -2/Protoforge | Found Prototype Device 10692 | -2/Protoforge | Identified Exp. System Purifier 10695 | -2/Protoforge | Found Prototype Device 10695 | -2/Protoforge | Identified Cep. Antimissile System 10699 | -2/Protoforge | Found Prototype Storage 10699 | -2/Protoforge | Identified Cep. NT7 Matterbank 10708 | -2/Protoforge | Found Prototype Launcher 10708 | -2/Protoforge | Identified Cep. Concussive Dispersal Blaster 10754 | -2/Protoforge | Spotted Executioner 10754 | -2/Protoforge | Spotted Executioner 10755 | -2/Protoforge | Spotted Striker 10758 | -2/Protoforge | Destroyed Executioner 10770 | -2/Protoforge | Destroyed Executioner 10800 | -2/Protoforge | Spotted Executioner 10801 | -2/Protoforge | Spotted Executioner 10810 | -2/Protoforge | Spotted Striker 10824 | -2/Protoforge | Spotted Striker 10839 | -2/Protoforge | Destroyed Striker 10857 | -2/Protoforge | Lost 5 allies 10879 | -2/Protoforge | Lost 3 parts (1p2u) 10939 | -2/Protoforge | Spotted Striker 10939 | -2/Protoforge | Spotted Executioner 10963 | -2/Protoforge | Destroyed 9 combat bots 10992 | -2/Protoforge | Spotted Executioner 10993 | -2/Protoforge | Spotted Striker 10997 | -2/Protoforge | Destroyed Executioner 11002 | -2/Protoforge | Spotted Striker 11009 | -2/Protoforge | Spotted Striker 11010 | -2/Protoforge | Destroyed Striker 11032 | -2/Protoforge | Spotted Striker 11043 | -2/Protoforge | Found 0bPrime Scrap Suit 11047 | -2/Protoforge | Destroyed 11 combat bots 11086 | -2/Protoforge | Spotted Executioner 11098 | -2/Protoforge | Forge Plexus network access discovered 11102 | -2/Protoforge | Lost 11 allies 11102 | -2/Protoforge | Spotted Striker 11168 | -2/Protoforge | Lost 3 allies 11184 | -2/Protoforge | Spotted Striker 11184 | -2/Protoforge | Spotted Executioner 11186 | -2/Protoforge | Destroyed Executioner 11247 | -2/Protoforge | Lost 7 allies 11264 | -2/Protoforge | Spotted Executioner 11275 | -2/Protoforge | Spotted Executioner 11284 | -2/Protoforge | Destroyed Executioner 11289 | -2/Protoforge | Destroyed Executioner 11309 | -2/Protoforge | Destroyed Executioner 11318 | -2/Protoforge | Lost 3 allies 11327 | -2/Protoforge | Spotted Executioner 11330 | -2/Protoforge | Destroyed 13 combat bots 11331 | -2/Protoforge | Spotted Executioner 11353 | -2/Protoforge | Core integrity fell below 50% 11361 | -2/Protoforge | Spotted Executioner 11363 | -2/Protoforge | Lost 4 parts (1p3n) 11367 | -2/Protoforge | Spotted Executioner 11369 | -2/Protoforge | Destroyed Executioner 11374 | -2/Protoforge | Spotted Executioner 11386 | -2/Protoforge | Spotted Striker 11392 | -2/Protoforge | Destroyed 7 combat bots 11399 | -2/Protoforge | Found Exp. Core Analyzer 11438 | -2/Protoforge | Spotted Executioner 11438 | -2/Protoforge | Spotted Executioner 11448 | -2/Protoforge | Spotted Striker 11484 | -2/Protoforge | Lost 21 allies 11494 | -2/Protoforge | Attacked by UFD forces 11494 | -2/Protoforge | Spotted 02F20-K 11494 | -2/Protoforge | Spotted 02F17-K 11494 | -2/Protoforge | Spotted 02F21-K 11495 | -2/Protoforge | Self-destructed Last Messages --------------- 11494_ Slug penetrates YE-90L(j). 11494_ Machine disabled. 11494_ Slug penetrates GM-CHM(E). 11494_ 1M-CPW(E) suffers critical hit (Destroy). 11494_ Exp. Heat Sink destroyed. 11494_ Penetrated by Slug. 11494_ Xenon Bombardment Thruster destroyed. 11494_ 02F20-K suffers critical hit (Destroy). 11494_ 02F20-K destroyed. 11494_ Knocked back. 11494_ Penetrated by Slug. 11494_ Slug penetrates 1M-CPW(E). 11495_ Penetrated by Slug. 11495_ Slug penetrates OG-R6Y(j). 11495_ 02F17-K suffers critical hit (Burn). 11495_ Penetrated by Slug. 11495_ Slug penetrates Forge Plexus. 11495_ Penetrated by Slug. 11495_ Tachyon Dispersion Ray destroyed. 11495_ Slug penetrates 1M-CPW(E). Map ----- +----------------------------------------------------+ | " "" """"""""""""""""""""""""" % % [= " " | | """"""""""""""""""""""""""" %%% " " | | """"""""""""""""""""""""""" ""% """ " | | """"""""""""""""""""""""""" % " "" " | | """""""""""""""""""""""""""""% %" % " | | """"""""""""""""""""""""""""" "%% "" %" " | | """"""""""""""""""""""""""""" %% " " | | """"""""""""""""""""""""""""" % % | | """"""""""""""""""""""""""""" %% % = | | """""""""""""""""""""""""""""%%%% | | """"""""""""""""""""""""""""" % % % " | | """"""""""""""""""""""""""""" % %"" *%="" | | " """""""""""""""""""""""""""""%" % %"! " | | " %""""""""""""""""""""""""""" % " * " | | &""""""""""""""""""""""""""" % " " | | " %% j""""""""""""""""""""""""""" %"% "" | | " " %%%""""""""""""""""""""""""" " % | | " ! """"""""""""""""""""""" "" " " "" | | "" = E %""""""""""""""""""""" " " "%"" | | "" ""% """"""""""""""""""" " " """ | | " " % """"""""""""""""" "" " " "" | | """ %% %""""""""""""""" "" "" " " | | " s """"""""" "" A "" | | E s""" E En % "" "E "" """ "" | | """ ""E"A % % E E" "" "" """ | | s E E %% "@ E" " " """ | | " %s """" """" " "" """ " | | " "% "" ""% SS" """""""""j "" | | % " """" j %SSj E | | " " "%""" " % " " " """ SS "%"" s"""" | | " " % " " % " " "" jSS " "" | | "" " """" " "" "" "" | | " % """"" "" """ " " " "" | | " " " " """" "" " | | " "" " " | | " "" """""""""" """ | | "" """"""""" " """ | | " " " """""""""" " " " """"" | | ##"####################################+++######## | | ####??????????????????????????????#"" ""#??? | | ????????????????????????????????###" "###? | | ????????????????????????????????#"" ""#? | | ????????????????????????????????#"" ""#? | | ????????????????????????????????#"" ""#? | | ????????????????????????????????#"Y Y"#? | | ????????????????????????????????#"" ""#? | | ????????????????????????????????#"" ""#? | | ????????????????????????????????#"" ""#? | | ????????????????????????????????###" "###? | | ??????????????????????????????????#"" ""#??? | +----------------------------------------------------+ Best States ------------- Heat Dissipation 75 Coolant Potential 65 Energy Generation 39 Energy Capacity 935 Matter Stores 1050 Matter Capacity 1050 Sight Range 23 Robot Scan Range 20 Terrain Scan Density 10 ECM Strength 1 Jamming Range 22 Additional Mass Support 9 Armor Coverage 150 Propulsion Shielding 66 Point Defense Rating 480 Phase Shifting 15 Evasion (%) 93 Targeting Accuracy 12 Launcher Accuracy 60 Core Analysis 8 Armor Integrity Analysis 50 Recoil Reduction 4 Offensive Hacking 12 Defensive Hacking 32 Item Schematics ----------------- Hcp. Storage Unit | -10/Materials | Hacked VTOL Module | -8/Storage | Hacked Railgun | -6/Factory | Hacked Robot Schematics ------------------ None Fabricated ------------ Nothing Repaired ---------- Nothing Studied --------- Flight Unit | -9/Materials | Hacked Imp. Surge Thruster | -6/Factory | Hacked Lgt. Fission Core | -6/Factory | Hacked Impulse Thruster | -4/Factory | Hacked Field Propulsion Drive | -4/Factory | Hacked Q-thruster | -4/Factory | Hacked Impulse Thruster Array | -3/Quarantine | Hacked Lgt. Antimatter Reactor | -2/Testing | Hacked Alien Tech Used ----------------- Sigix Broadsword Transdimensional Reconstructor Achievements -------------- Inventory(Loot) Super-what Now? We Are One Challenges ------------ None Game ------ Seed ConstructZeronetCasing Manual? 0 Play Time 03:26:37 Cumulative 218.1 hours Start 2025.12.30 @ 14:13:01 End 2026.01.02 @ 14:17:27 Sessions 5 Manual Loads 0 Difficulty Rogue Special Mode None Game No. 303 Rogue 303 Adventurer 0 Explorer 0 Win Type - Total 3 Types 2/0/0/1/0/0/0/0/0/0 Lore% 74 Gallery% 74 Achievement% 50 Wizard Run 0 Options --------- Layout 0 ASCII 0 Keyboard 0 Movement Mouse Keybinds 0 Fullscreen 1 Font 16/SmallcapsGlow Map View 75x55 Zoom Use 0% Tactical HUD 1 Map Filters NONE Filters NONE Steam 1 RUN: cb07a748-1b1b-4cd6-a40e-9c23fd86adf6